{"text_format":"1","workbook":"xlsx","n_sheets":14,"sheets":["Welcome","Tutorial","Main Menu","Step 1","Step 2","Flood Risk","Scenic Views","Environmental Education","Recreation","Bird Watching","Generic","Equity & Reliability","Step 4","Step_1_2_3_RAW"],"not_rendered":{"charts":0,"images":826,"macros":1,"external_links":2,"defined_names":1846,"comments":0,"pivot_tables":0},"unopened":[],"bounds":{"document_bytes":16777216,"sheet_cells":100000,"rows_first":2000,"rows_last":500,"rows_between":2000,"halvings":0,"cell_chars":16384,"cell_head_chars":4096},"cells_cut":0,"cells_raw":0,"read":"whole","date_system":"1900"}

{"sheet":"Welcome","index":0,"n_rows":0,"n_cols":0,"rows_kept":0,"cut":false,"hidden":false,"merged":[]}

{"sheet":"Tutorial","index":1,"n_rows":0,"n_cols":0,"rows_kept":0,"cut":false,"hidden":true,"merged":[]}

{"sheet":"Main Menu","index":2,"n_rows":0,"n_cols":0,"rows_kept":0,"cut":false,"hidden":true,"merged":[]}

{"sheet":"Step 1","index":3,"n_rows":15,"n_cols":3,"rows_kept":15,"cut":false,"hidden":true,"merged":[[14,2,14,3],[5,2,5,3],[6,2,6,3],[7,2,7,3],[8,2,8,3],[9,0,13,0],[9,1,13,1],[0,2,0,3],[1,1,1,3],[2,0,3,0],[2,2,2,3],[3,2,3,3],[4,2,4,3]]}
["Step","Question/Category","User Entries"]
[1,"Describe the decision context"]
["1.A","What are the main objectives of the assessment?"]
[null,"Are some objectives more important than others, or are there additional important objectives? If so, specify."]
["1.B","What is the geographic scope for the decision?"]
["1.C","Who are the affected members of the public or stakeholder groups?"]
["1.D","Are there important stakeholder or public needs or wants? Are there any conflicting needs/wants?"]
["1.E","Is a rapid assessment sufficient?"]
["1.F","Number of sites",2]
["1.G","Site names or identifiers","Site 1"]
[null,null,"Site 2"]
[]
[]
[]
["1.H","Is there any additional information important to framing the decision?"]

{"sheet":"Step 2","index":4,"n_rows":8,"n_cols":8,"rows_kept":8,"cut":false,"hidden":true,"merged":[[4,0,5,0],[2,0,3,0],[1,1,1,9]]}
["Step","Question/Category"]
[2,"Select Ecosystem Services and Describe Benefits"]
["2.A","Which Ecosystem Services are most relevant to the decision?"]
[null,"What Benefits of the selected services are relevant to the decision?"]
["2.B","Benefit Name","Reduced Flood Risk","Scenic Views","Environmental Education","Recreation","Bird Watching","Other()"]
[null,"Provide background information on each service and the benefits being assessed.","Wetlands retain water that would otherwise increase flooding, providing flood risk reduction benefits. We only consider reductions in flood risk to structures in the floodplain within 4 miles downstream.","Aesthetically pleasing landscapes provide observers with scenic views. We only consider views from homes or other structures.","Natural areas provide learning opportunities that lead to educational benefits. We only consider shorter less resource dependent educational visits of less than 1/2 day.","Wetlands provide opportunities for recreational activities, one of the main ways people interact with green spaces. We considered recreation generally and were more interested in everyday recreation, typically lasting a half day or less.","Wetlands provide the opportunity to view or interact with wildlife such as birds. We defined bird watching benefits as those provided to local residents, excluding serious birders who might travel from other areas to see birds."]
["2.C","Provide background information on the concerns and disservices that may relate to the services and benefits being assessed.","Water retained in wetlands may inundate areas directly surrounding the wetland or upstream, potentially causing flood damages in those areas.","Poor maintenance of a site may lead to accumulation of trash or overgrown vegetation, giving a \"messy\" appearance that people dislike.","There could be concerns about exposure during learning activities, such as sun, allergens and safety at the site.","Many of the disservices people associate with recreational sites have to do with user conflicts, which may arise when recreationists have different preferences.","People in urban areas may have negative attitudes toward specific bird species. It may be important to determine what these species are and explore their relationship with wetlands."]
["2.D","How do services and people interact geographically?"]

{"sheet":"Flood Risk","index":5,"n_rows":15,"n_cols":9,"rows_kept":15,"cut":false,"hidden":true,"merged":[[1,8,1,11],[0,2,0,3],[0,4,0,7],[0,8,0,11],[7,0,14,0],[3,0,5,0],[2,0,2,1],[1,1,1,3],[1,4,1,7]]}
["Step","Question/Category","User Entries",null,"User Entries (Page 2)",null,null,null,"User Entries (Page 3)"]
[3,"Compile Benefit Indicators",null,null,"Compile Benefit Indicators",null,null,null,"Compile Benefit Indicators"]
["Site name or identifier",null,"Site 1","Site 2"]
[3.1,"A. Has/will flooding occurred/occur downstream of the site?"]
[null,"B. Can the site retain water that otherwise flows into the floodplain?"]
[null,"C. Flood reduction benefits do not require Complementary Inputs (NA)"]
[3.2,"1. How many people or homes are in flood zones and 0-2.5 miles downstream of the site?                                                                                                 "]
[3.3,"A.1 How large is the restoration site?"]
[null,"A.2 Does the site contain additional features that may increase the site's retention volume?"]
[null,"      Note the additional features"]
[null,"B.1 Are there any substitutes (dams, levees, etc.) between the site and people who benefit?"]
[null,"      Note the substitutes"]
[null,"B.2 How many (number or percent cover) existing wetlands are within a 5-mile radius of the site?"]
[null,"C. Flood reduction benefits do not have Complementary Inputs (NA)"]
[null,"D. Are people who may benefit aware of and concerned about flood risk in their location?"]

{"sheet":"Scenic Views","index":6,"n_rows":14,"n_cols":9,"rows_kept":14,"cut":false,"hidden":true,"merged":[[3,0,5,0],[6,0,8,0],[9,0,13,0],[2,0,2,1],[1,1,1,3],[1,4,1,7],[1,8,1,11],[0,2,0,3],[0,4,0,7],[0,8,0,11]]}
["Step","Question/Category","User Entries",null,"User Entries (Page 2)",null,null,null,"User Entries (Page 3)"]
[3,"Compile Benefit Indicators",null,null,"Compile Benefit Indicators",null,null,null,"Compile Benefit Indicators"]
["Site name or identifier",null,"Site 1","Site 2"]
[3.1,"A. Is the site visible from homes, roads or trails?"]
[null,"B. Will the site improve the scenic quality of the landscape?"]
[null,"C. Scenic View benefits do not require Complementary Inputs (NA)"]
[3.2,"1. How many people or homes within 160 feet of the site?                                                                                                 "]
[null,"2. How many people or homes within 325 feet of the site?                                                                                                 "]
[null,"3. Do trails or roads pass within 325 feet of the site? "]
[3.3,"A.1 Does the site have features or characteristics of aesthetic interest?"]
[null,"      Note the features or characteristics"]
[null,"B. How much wetlands and open water are within 650 feet of the site (number or percent cover)?"]
[null,"C. How many different natural land cover types are within 650 feet of the site? (number of types)"]
[null,"D. Does the site meet these people's visual preferences?"]

{"sheet":"Environmental Education","index":7,"n_rows":13,"n_cols":9,"rows_kept":13,"cut":false,"hidden":true,"merged":[[0,8,0,11],[1,8,1,11],[7,0,12,0],[2,0,2,1],[3,0,5,0],[1,1,1,3],[0,2,0,3],[1,4,1,7],[0,4,0,7]]}
["Step","Question/Category","User Entries",null,"User Entries (Page 2)",null,null,null,"User Entries (Page 3)"]
[3,"Compile Benefit Indicators",null,null,"Compile Benefit Indicators",null,null,null,"Compile Benefit Indicators"]
["Site name or identifier",null,"Site 1","Site 2"]
[3.1,"A. Do people want to participate in environmental education nearby?"]
[null,"B. Will the site support wildlife or features of educational interest?"]
[null,"C. Educational benefits do not require Complementary Inputs (NA)"]
[3.2,"Number of educational institutions within 0.25 miles of the site?                                                                                              "]
[3.3,"A.1 Does the site have features/habitat/wildlife of educational interest?"]
[null,"      Note the features, habitat or wildlife"]
[null,"B. How many other wetlands suitable for educational use are within 1/2 mile of the site?"]
[null,"C.1 Will the site have complementary infrastructure?"]
[null,"Note what these infrastructure are and their number or density"]
[null,"D. Does the site have characteristics that make it prefferable?"]

{"sheet":"Recreation","index":8,"n_rows":19,"n_cols":9,"rows_kept":19,"cut":false,"hidden":true,"merged":[[0,4,0,7],[1,4,1,7],[0,8,0,11],[1,8,1,11],[11,0,18,0],[6,0,10,0],[2,0,2,1],[3,0,5,0],[1,1,1,3],[0,2,0,3]]}
["Step","Question/Category","User Entries",null,"User Entries (Page 2)",null,null,null,"User Entries (Page 3)"]
[3,"Compile Benefit Indicators",null,null,"Compile Benefit Indicators",null,null,null,"Compile Benefit Indicators"]
["Site name or identifier",null,"Site 1","Site 2"]
[3.1,"A. Do people want to do recreational activities that require wetlands?"]
[null,"B. Will the site support recreational activities?"]
[null,"C. Will required Complementary Inputs be available at the site?"]
[3.2,"1. How many people or homes within 1/3 mile of the site?                                                                                                 "]
[null,"2. Are there bike trails within 1/3 mile of the site?"]
[null,"3. Are there bus stops within 1/3 mile of the site?"]
[null,"4. How many people/homes within 1/3 to 1/2 mile of the site?"]
[null,"5. How many people/homes within 1/2 to 6 miles of the site?"]
[3.3,"A.1 What is the total area of green space around the restoration site?"]
[null,"B.1 Substitute greenspace within 2/3 mile of the site? (number/area)"]
[null,"B.2 Substitute greenspace within 1 mile of the site? (number/area)"]
[null,"B.3 Substitute of greenspace within 12 miles of the site? (number/area)"]
[null,"C.1 Does the site have infrastructure that supports more activities?"]
[null,"      Note what these infrastructure are and list the additional recreational activities supported"]
[null,"D. Does the site have additional features that people prefer?"]
[null,"      Note what these features are"]

{"sheet":"Bird Watching","index":9,"n_rows":14,"n_cols":9,"rows_kept":14,"cut":false,"hidden":true,"merged":[[0,4,0,7],[1,4,1,7],[0,8,0,11],[1,8,1,11],[6,0,7,0],[8,0,13,0],[2,0,2,1],[3,0,5,0],[1,1,1,3],[0,2,0,3]]}
["Step","Question/Category","User Entries",null,"User Entries (Page 2)",null,null,null,"User Entries (Page 3)"]
[3,"Compile Benefit Indicators",null,null,"Compile Benefit Indicators",null,null,null,"Compile Benefit Indicators"]
["Site name or identifier",null,"Site 1","Site 2"]
[3.1,"A. Do people nearby want to see or hear birds?"]
[null,"B. Will the site support bird species of interest?"]
[null,"C. Bird watching benefits do not require Complementary Inputs (NA)"]
[3.2,"1. How many people or homes within 1/5 mile of the site?                                                                                                 "]
[null,"2. Do trails or roads pass within 1/5 mile of the site? "]
[3.3,"A.1 Will the site support rare or unique species?"]
[null,"      Note why, or the results of bird habitat/functional assessments"]
[null,"B. Bird watching benefits do not have substitutes and measuring scarcity is beyond the scope of a rapid assessment (NA)"]
[null,"C.1 Will the site have complementary infrastructure or habitat?"]
[null,"      Note what this infrastructure is and its density"]
[null,"D. Are people who may benefit expected to have above average interest in bird watching?"]

{"sheet":"Generic","index":10,"n_rows":11,"n_cols":9,"rows_kept":11,"cut":false,"hidden":true,"merged":[[1,4,1,7],[0,4,0,7],[0,8,0,11],[1,8,1,11],[7,0,10,0],[3,0,5,0],[2,0,2,1],[1,1,1,3],[0,2,0,3]]}
["Step","Question/Category","User Entries",null,"User Entries (Page 2)",null,null,null,"User Entries (Page 3)"]
[3,"Compile Benefit Indicators",null,null,"Compile Benefit Indicators",null,null,null,"Compile Benefit Indicators"]
["Site name or identifier",null,"Site 1","Site 2"]
[3.1,"A. Is there evidence of demand for the service?"]
[null,"B. Are any necessary thresholds of quality or quantity met?"]
[null,"C. Are required complementary inputs available?"]
[3.2,"How many people benefit?"]
[null,"A. Quality of Service"]
[null,"B. Substitutes and Scarcity"]
[null,"C. Complements"]
[null,"D. Preferences"]

{"sheet":"Equity & Reliability","index":11,"n_rows":7,"n_cols":9,"rows_kept":7,"cut":false,"hidden":true,"merged":[[5,0,6,0],[3,0,4,0],[0,2,0,3],[0,4,0,7],[0,8,0,11],[1,1,1,3],[1,4,1,7],[1,8,1,11],[2,0,2,1]]}
["Step","Question/Category","User Entries",null,"User Entries (Page 2)",null,null,null,"User Entries (Page 3)"]
[3,"Compile Benefit Indicators",null,null,"Compile Benefit Indicators",null,null,null,"Compile Benefit Indicators"]
["Site name or identifier",null,"Site 1","Site 2"]
[3.4,"Social Equity (score)"]
[null,"notes"]
[3.5,"Reliability (score)"]
[null,"notes"]

{"sheet":"Step 4","index":12,"n_rows":47,"n_cols":13,"rows_kept":47,"cut":false,"hidden":true,"merged":[[0,5,0,12],[0,1,0,2],[1,1,1,2],[9,1,12,1],[2,0,8,0],[0,3,0,4],[17,0,21,0],[9,0,16,0],[3,1,4,1],[5,1,6,1],[22,0,32,0],[22,1,26,1],[28,1,30,1],[46,5,46,12],[46,0,46,4],[44,0,45,0],[39,0,43,0],[33,0,38,0],[33,1,34,1]]}
["Step 4","Summarize the Indicators",null,"Site",null,"Site (page 2)"]
["Benefit","Indicators",null,"Site 1","Site 2"]
["Flood Risk","3.2 How Many Benefit?","2.5 mi downstream of site and in flood zone",-1,-1,-1,-1,-1,-1,-1,-1,-1,-1]
[null,"3.3.A Service Quality","Area of restoration site (acres)",-1,-1,-1,-1,-1,-1,-1,-1,-1,-1]
[null,null,"Features that increase retention volume?"]
[null,"3.3.B Scarcity","Dams and levees 2.5 mi downstream?"]
[null,null,"Wetlands within 5 mi (number or % area)",-1,-1,-1,-1,-1,-1,-1,-1,-1,-1]
[null,"3.3.C Complements","NA","NA","NA","NA","NA","NA","NA","NA","NA","NA","NA"]
[null,"3.3.D Preferences","Are people worried about flood risk?"]
["Scenic Views","3.2 How Many Benefit?","Number within 160 ft of site",-1,-1,-1,-1,-1,-1,-1,-1,-1,-1]
[null,null,"Number within 325 ft of site",-1,-1,-1,-1,-1,-1,-1,-1,-1,-1]
[null,null,"Weighted number who benefit",-1,-1,-1,-1,-1,-1,-1,-1,-1,-1]
[null,null,"Are there roads or trails within 325 ft of site?"]
[null,"3.3.A Service Quality","Aesthetic features or characteristics?"]
[null,"3.3.B Scarcity","Wetlands or water within 650 ft (number or %)",-1,-1,-1,-1,-1,-1,-1,-1,-1,-1]
[null,"3.3.C Complements","Natural land use types within 650 ft (types)",-1,-1,-1,-1,-1,-1,-1,-1,-1,-1]
[null,"3.3.D Preferences","Will people find it aesthetically pleasing?"]
["Environmental Education","3.2 How Many Benefit?","Education institutions within 0.25 mi of site",-1,-1,-1,-1,-1,-1,-1,-1,-1,-1]
[null,"3.3.A Service Quality","Features/habitat/wildlife of education interest?"]
[null,"3.3.B Scarcity","Wetlands within 0.5 mi of the site",-1,-1,-1,-1,-1,-1,-1,-1,-1,-1]
[null,"3.3.C Complements","Educational facilities or infrastructure on site?"]
[null,"3.3.D Preferences","Will people prefer charcteristics of the site?"]
["Recreation","3.2 How Many Benefit?","Number within 1/3 mi of the site",-1,-1,-1,-1,-1,-1,-1,-1,-1,-1]
[null,null,"Are there bike paths within 1/3 mi of site?"]
[null,null,"Are there bus stops within 1/3 mi of site?"]
[null,null,"Number within 0 to 0.5 mi of site",-1,-1,-1,-1,-1,-1,-1,-1,-1,-1]
[null,null,"Number within 0.5 to 6 mi of site",-1,-1,-1,-1,-1,-1,-1,-1,-1,-1]
[null,"3.3.A Service Quality","Total area of green space around site",-1,-1,-1,-1,-1,-1,-1,-1,-1,-1]
[null,"3.3.B Scarcity","green space within 2/3 mi of site",-1,-1,-1,-1,-1,-1,-1,-1,-1,-1]
[null,null,"green space within 1 mi of site",-1,-1,-1,-1,-1,-1,-1,-1,-1,-1]
[null,null,"green space within 12 mi of site",-1,-1,-1,-1,-1,-1,-1,-1,-1,-1]
[null,"3.3.C Complements","Infrastructure supporting recreational activities?"]
[null,"3.3.D Preferences","Are there additional features on the site?"]
["Bird Watching","3.2 How Many Benefit?","Number within 0.2 mi of site",-1,-1,-1,-1,-1,-1,-1,-1,-1,-1]
[null,null,"Are there roads or trails within 0.2 mi of site?"]
[null,"3.3.A Service Quality","Will the site support rare or unique species?"]
[null,"3.3.B Scarcity","NA","NA","NA","NA","NA","NA","NA","NA","NA","NA","NA"]
[null,"3.3.C Complements","Supporting infrastructure or habitat on site?"]
[null,"3.3.D Preferences","Will people be interested in birds at the site?"]
["new","3.2 How Many Benefit?","ENTER QUESTION",-1,-1,-1,-1,-1,-1,-1,-1,-1,-1]
[null,"3.3.A Service Quality","ENTER QUESTION",-1,-1,-1,-1,-1,-1,-1,-1,-1,-1]
[null,"3.3.B Scarcity","ENTER QUESTION",-1,-1,-1,-1,-1,-1,-1,-1,-1,-1]
[null,"3.3.C Complements","ENTER QUESTION",-1,-1,-1,-1,-1,-1,-1,-1,-1,-1]
[null,"3.3.D Preferences","ENTER QUESTION",-1,-1,-1,-1,-1,-1,-1,-1,-1,-1]
[null,"3.4 Social Equity","Score",-1,-1,-1,-1,-1,-1,-1,-1,-1,-1]
[null,"3.5 Reliability","Score",-1,-1,-1,-1,-1,-1,-1,-1,-1,-1]
["BLACK = No entry; GRAY = NA; BLUE = Above Average/YES*; RED = Below Average/No* (*reverse for scarcity)",null,null,null,null,"BLACK = No entry; GRAY = NA; BLUE = Above Average/YES*; RED = Below Average/No* (*reverse for scarcity)"]

{"sheet":"Step_1_2_3_RAW","index":13,"n_rows":225,"n_cols":18,"rows_kept":225,"cut":false,"hidden":true,"merged":[[179,1,179,2],[180,0,186,0],[181,1,182,1],[183,1,184,1],[148,8,148,11],[171,0,171,1],[172,0,173,0],[174,0,175,0],[160,0,167,0],[224,0,224,4],[211,0,216,0],[211,1,212,1],[217,0,221,0],[187,0,194,0],[187,1,190,1],[195,0,199,0],[200,0,210,0],[200,1,204,1],[206,1,208,1],[26,14,27,14],[148,4,148,7],[148,1,148,3],[157,0,159,0],[150,0,156,0],[118,8,118,11],[119,0,119,1],[120,0,124,0],[149,0,149,1],[118,1,118,3],[118,4,118,7],[30,0,30,1],[81,0,84,0],[85,0,90,0],[105,0,112,0],[74,0,80,0],[8,15,8,16],[178,1,178,2],[178,3,178,4],[95,1,95,3],[95,4,95,7],[95,8,95,11],[96,0,96,1],[97,0,101,0],[127,0,133,0],[134,0,143,0],[20,0,21,0],[22,0,23,0],[29,8,29,11],[19,4,19,7],[19,1,19,3],[73,0,73,1],[0,8,0,11],[9,0,13,0],[9,1,13,1],[14,2,14,3],[0,2,0,3],[1,1,1,3],[2,0,3,0],[2,2,2,3],[3,2,3,3],[5,2,5,3],[6,2,6,3],[7,2,7,3],[8,2,8,3],[0,4,0,7],[4,2,4,3],[72,8,72,11],[31,0,35,0],[39,0,42,0],[29,1,29,3],[29,4,29,7],[47,8,47,11],[48,0,48,1],[49,0,53,0],[57,0,66,0],[72,1,72,3],[72,4,72,7],[47,1,47,3],[47,4,47,7]]}
["Step","Question/Category","User Entries",null,"User Entries (Page 2)",null,null,null,"User Entries (Page 3)",null,null,null,null,null,null,"New Project?",1]
[1,"Describe the decision context"]
["1.A","What are the main objectives of the assessment?"]
[null,"Are some objectives more important than others, or are there additional important objectives? If so, specify."]
["1.B","What is the geographic scope for the decision?"]
["1.C","Who are the affected members of the public or stakeholder groups?"]
["1.D","Are there important stakeholder or public needs or wants? Are there any conflicting needs/wants?"]
["1.E","Is a rapid assessment sufficient?",false,null,false]
["1.F","Number of sites",2,null,null,null,null,null,null,null,null,null,null,null,null,"New Site Names"]
["1.G","Site names or identifiers","Site 1","Site 6",null,null,null,null,null,null,null,null,null,null,1,null,null,6]
[null,null,"Site 2","Site 7",null,null,null,null,null,null,null,null,null,null,2,null,null,7]
[null,null,"Site 3","Site 8",null,null,null,null,null,null,null,null,null,null,3,null,null,8]
[null,null,"Site 4","Site 9",null,null,null,null,null,null,null,null,null,null,4,null,null,9]
[null,null,"Site 5","Site 10",null,null,null,null,null,null,null,null,null,null,5,null,null,10]
["1.H","Is there any additional information important to framing the decision?"]
[]
[]
[null,"Step2"]
[null,null,null,null,null,null,null,null,null,null,null,null,null,null,null,"ES","BENEFIT"]
[2,"Select Ecosystem Services and Describe Benefits",null,null,null,null,null,null,null,null,null,null,null,null,"Flood",false,false]
["2.A","Which Ecosystem Services are most relevant to the decision?",null,null,null,null,null,null,null,null,null,null,null,null,"View",false,false]
[null,"What Benefits of the selected services are relevant to the decision?",null,null,null,null,null,null,null,null,null,null,null,null,"Edu",false,false]
["2.B","Benefit Name","Reduced Flood Risk","Scenic Views","Environmental Education","Recreation","Bird Watching",null,null,null,null,null,null,null,"Rec",false,false]
[null,"Provide background information on each service and the benefits being assessed.","Wetlands retain water that would otherwise increase flooding, providing flood risk reduction benefits. We only consider reductions in flood risk to structures in the floodplain within 4 miles downstream.","Aesthetically pleasing landscapes provide observers with scenic views. We only consider views from homes or other structures.","Natural areas provide learning opportunities that lead to educational benefits. We only consider shorter less resource dependent educational visits of less than 1/2 day.","Wetlands provide opportunities for recreational activities, one of the main ways people interact with green spaces. We considered recreation generally and were more interested in everyday recreation, typically lasting a half day or less.","Wetlands provide the opportunity to view or interact with wildlife such as birds. We defined bird watching benefits as those provided to local residents, excluding serious birders who might travel from other areas to see birds.",null,null,null,null,null,null,null,"Bird",false,false]
["2.C","Provide background information on the concerns and disservices that may relate to the services and benefits being assessed.","Water retained in wetlands may inundate areas directly surrounding the wetland or upstream, potentially causing flood damages in those areas.","Poor maintenance of a site may lead to accumulation of trash or overgrown vegetation, giving a \"messy\" appearance that people dislike.","There could be concerns about exposure during learning activities, such as sun, allergens and safety at the site.","Many of the disservices people associate with recreational sites have to do with user conflicts, which may arise when recreationists have different preferences.","People in urban areas may have negative attitudes toward specific bird species. It may be important to determine what these species are and explore their relationship with wetlands.",null,null,null,null,null,null,null,"Other",false,false]
["2.D","How do services and people interact geographically?",null,null,null,null,null,null,null,null,null,null,null,null,"Name"]
[null,null,null,null,null,null,null,null,null,null,null,null,null,null,"EqRel","Yes",false]
[null,"Generic",null,null,null,null,null,null,null,null,null,null,null,null,null,"No",false]
[]
[3,"Compile Benefit Indicators",null,null,"Compile Benefit Indicators",null,null,null,"Compile Benefit Indicators",null,null,null,null,null,"YES","NO","NA","site"]
["Site name or identifier",null,1,2,3,4,5,6,7,8,9,10,"Average","left",384,428.25,466.5,1]
[3.1,"A. Is there evidence of demand for the service?",false,false,false,false,false,false,true,false,false,false,null,"left",510,552,594,2]
[null,null,false,false,false,false,false,false,false,false,false,false]
[null,"B. Are any necessary thresholds of quality or quantity met?",false,false,false,false,false,false,true,false,false,false,null,"left",642.75,684.75,726.75,3]
[null,null,false,false,false,false,false,false,false,false,false,false]
[null,"C. Are required complementary inputs available?",false,false,false,false,false,false,false,false,false,false,null,"left",783,825,867,4]
[null,null,false,false,false,false,false,false,false,false,false,false]
[null,null,true,false,false,false,false,false,false,false,false,false]
[3.2,"How many people benefit?",null,null,null,null,null,null,null,null,null,null,{"$f":"AVERAGE(Other_1_Site1, Other_1_Site2, Other_1_Site3, Other_1_Site4, Other_1_Site5, Other_1_Site6, Other_1_Site7, Other_1_Site8, Other_1_Site9, Other_1_Site10)","v":{"$error":"#DIV/0!"}},null,"Question 1","ENTER QUESTION"]
[3.3,"A. Quality of Service",null,null,null,null,null,null,null,null,null,null,{"$f":"AVERAGE(Other_2_Site1, Other_2_Site2, Other_2_Site3, Other_2_Site4, Other_2_Site5, Other_2_Site6, Other_2_Site7, Other_2_Site8, Other_2_Site9, Other_2_Site10)","v":{"$error":"#DIV/0!"}},null,"Question 2","ENTER QUESTION"]
[null,"B. Substitutes and Scarcity",null,null,null,null,null,null,null,null,null,null,{"$f":"AVERAGE(Other_3_Site1, Other_3_Site2, Other_3_Site3, Other_3_Site4, Other_3_Site5, Other_3_Site6, Other_3_Site7, Other_3_Site8, Other_3_Site9, Other_3_Site10)","v":{"$error":"#DIV/0!"}},null,"Question 3","ENTER QUESTION"]
[null,"C. Complements",null,null,null,null,null,null,null,null,null,null,{"$f":"AVERAGE(Other_4_Site1, Other_4_Site2, Other_4_Site3, Other_4_Site4, Other_4_Site5, Other_4_Site6, Other_4_Site7, Other_4_Site8, Other_4_Site9, Other_4_Site10)","v":{"$error":"#DIV/0!"}},null,"Question 4","ENTER QUESTION"]
[null,"D. Preferences",null,null,null,null,null,null,null,null,null,null,{"$f":"AVERAGE(Other_5_Site1, Other_5_Site2, Other_5_Site3, Other_5_Site4, Other_5_Site5, Other_5_Site6, Other_5_Site7, Other_5_Site8, Other_5_Site9, Other_5_Site10)","v":{"$error":"#DIV/0!"}},null,"Question 5","ENTER QUESTION"]
[]
[]
[null,"Flood"]
[null,null,null,null,null,null,null,null,null,null,null,null,null,"left",923.25,965.25,1007.25,5]
[3,"Compile Benefit Indicators",null,null,"Compile Benefit Indicators for Woonasquatucket Example",null,null,null,"Compile Benefit Indicators for Woonasquatucket Example",null,null,null,null,"left",1062.75,1104.75,1146.75,6]
["Site name or identifier",null,1,2,3,4,5,6,7,8,9,10,null,"left",1203,1245,1287,7]
[3.1,"A. Has/will flooding occured/occur downstream of the site?",false,false,false,false,false,false,false,false,false,false,null,"left",1343.25,1385.25,1427.25,8]
[null,"NO",false,false,false,false,false,false,false,false,false,false,null,"left",1482.75,1524.75,1566.75,9]
[null,"B. Can the site retain water that otherwise flows into the floodplain?",false,false,false,false,false,false,false,false,false,false,null,"left",1623,1665,1707,10]
[null,"NO",false,false,false,false,false,false,false,false,false,false]
[null,"C. Flood reduction benefits do not require Complementary Inputs (NA)",false,false,false,false,false,false,false,false,false,false]
[null,"NO",false,false,false,false,false,false,false,false,false,false]
[null,"NA",true,true,true,true,true,true,true,true,true,true]
[3.2,"1. How many people or homes are in flood zones and 0-2.5 miles downstream of the site?                                                                                                 ","x",null,null,null,null,null,null,null,null,null,{"$f":"AVERAGE(Flood_3_2_1_Site1, Flood_3_2_1_Site2, Flood_3_2_1_Site3, Flood_3_2_1_Site4, Flood_3_2_1_Site5, Flood_3_2_1_Site6, Flood_3_2_1_Site7, Flood_3_2_1_Site8, Flood_3_2_1_Site9, Flood_3_2_1_Site10)","v":{"$error":"#DIV/0!"}},"UNITS?"]
[3.3,"A.1 How large is the restoration site?","x",null,null,null,null,null,null,null,null,null,{"$f":"AVERAGE(Flood_3_3_A1_Site1, Flood_3_3_A1_Site2, Flood_3_3_A1_Site3, Flood_3_3_A1_Site4, Flood_3_3_A1_Site5, Flood_3_3_A1_Site6, Flood_3_3_A1_Site7, Flood_3_3_A1_Site8, Flood_3_3_A1_Site9, Flood_3_3_A1_Site10)","v":{"$error":"#DIV/0!"}},"UNITS?"]
[null,"A.2 Does the site contain additional features that may increase the site's retention volume?",false,false,false,false,false,false,false,false,false,false]
[null,"NO",false,false,false,false,false,false,false,false,false,false]
[null,"      Note the additional features","x"]
[null,"B.1 Are there any substitutes (dams, levees, etc.) between the site and people who benefit?",false,false,false,false,false,false,false,false,false,false]
[null,"NO",false,false,false,false,false,false,false,false,false,false]
[null,"      Note the substitutes","x"]
[null,"B.2 How many (number or percent cover) existing wetlands are within a 5-mile radius of the site?","x",null,null,null,null,null,null,null,null,null,{"$f":"AVERAGE(Flood_3_3_B2_Site1, Flood_3_3_B2_Site2, Flood_3_3_B2_Site3, Flood_3_3_B2_Site4, Flood_3_3_B2_Site5, Flood_3_3_B2_Site6, Flood_3_3_B2_Site7, Flood_3_3_B2_Site8, Flood_3_3_B2_Site9, Flood_3_3_B2_Site10)","v":{"$error":"#DIV/0!"}},"UNITS?"]
[null,"C. Flood reduction benefits do not have Complementary Inputs (NA)","x"]
[null,"D. Are people who may benefit aware of and concerned about flood risk in their location?",false,false,false,false,false,false,false,false,false,false]
[null,"NO",false,false,false,false,false,false,false,false,false,false]
[]
[]
[null,"View"]
[]
[3,"Compile Benefit Indicators",null,null,"Compile Benefit Indicators for Woonasquatucket Example",null,null,null,"Compile Benefit Indicators for Woonasquatucket Example"]
["Site name or identifier",null,1,2,3,4,5,6,7,8,9,10]
[3.1,"A. Is the site visible from homes, roads or trails?",false,false,false,false,false,false,false,false,false,false]
[null,"NO",false,false,false,false,false,false,false,false,false,false]
[null,"B. Will the site improve the scenic quality of the landscape?",false,false,false,false,false,false,false,false,false,false]
[null,"NO",false,false,false,false,false,false,false,false,false,false]
[null,"C. Scenic View benefits do not require Complementary Inputs (NA)",false,false,false,false,false,false,false,false,false,false]
[null,"NO",false,false,false,false,false,false,false,false,false,false]
[null,"NA",true,true,true,true,true,true,true,true,true,true]
[3.2,"1. How many people or homes within 160 feet of the site?                                                                                                 ",null,null,null,null,null,null,null,null,null,null,{"$f":"AVERAGE(View_3_2_1_Site1, View_3_2_1_Site2, View_3_2_1_Site3,View_3_2_1_Site4,View_3_2_1_Site5,View_3_2_1_Site6,View_3_2_1_Site7,View_3_2_1_Site8,View_3_2_1_Site9,View_3_2_1_Site10)","v":{"$error":"#DIV/0!"}},"UNITS?"]
[null,"2. How many people or homes within 325 feet of the site?                                                                                                 ",null,null,null,null,null,null,null,null,null,null,{"$f":"AVERAGE(View_3_2_2_Site1, View_3_2_2_Site2, View_3_2_2_Site3,View_3_2_2_Site4,View_3_2_2_Site5,View_3_2_2_Site6,View_3_2_2_Site7,View_3_2_2_Site8,View_3_2_2_Site9,View_3_2_2_Site10)","v":{"$error":"#DIV/0!"}},"UNITS?"]
[null,"3. Do trails or roads pass within 325 feet of the site? ",false,false,false,false,false,false,false,false,false,false,{"$f":"SUM((Avg_4*0.7),(Avg_5*0.3))","v":{"$error":"#DIV/0!"}}]
[null,"NO",false,false,false,false,false,false,false,false,false,false]
[3.3,"A.1 Does the site have features or characteristics of aesthetic interest?",false,false,false,false,false,false,false,false,false,false]
[null,"NO",false,false,false,false,false,false,false,false,false,false]
[null,"      Note the features or characteristics"]
[null,"B. How much wetlands and open water are within 650 feet of the site (number or percent cover)?",null,null,null,null,null,null,null,null,null,null,{"$f":"AVERAGE(View_3_3_B1_Site1, View_3_3_B1_Site2, View_3_3_B1_Site3, View_3_3_B1_Site4, View_3_3_B1_Site5, View_3_3_B1_Site6, View_3_3_B1_Site7, View_3_3_B1_Site8, View_3_3_B1_Site9, View_3_3_B1_Site10)","v":{"$error":"#DIV/0!"}},"UNITS?"]
[null,"C. How many different natural land cover types are within 650 feet of the site? (number of types)",null,null,null,null,null,null,null,null,null,null,{"$f":"AVERAGE(View_3_3_C_Site1, View_3_3_C_Site2, View_3_3_C_Site3, View_3_3_C_Site4, View_3_3_C_Site5, View_3_3_C_Site6, View_3_3_C_Site7, View_3_3_C_Site8, View_3_3_C_Site9, View_3_3_C_Site10)","v":{"$error":"#DIV/0!"}}]
[null,"D. Does the site meet these people's visual preferences?",false,false,false,false,false,false,false,false,false,false]
[null,"NO",false,false,false,false,false,false,false,false,false,false]
[]
[null,"Edu"]
[]
[3,"Compile Benefit Indicators",null,null,"Compile Benefit Indicators for Woonasquatucket Example",null,null,null,"Compile Benefit Indicators for Woonasquatucket Example"]
["Site name or identifier",null,1,2,3,4,5,6,7,8,9,10]
[3.1,"A. Do people want to participate in environmental education nearby?",false,false,false,false,false,false,false,false,false,false]
[null,"NO",false,false,false,false,false,false,false,false,false,false]
[null,"B. Will the site support wildlife or features of educational interest?",false,false,false,false,false,false,false,false,false,false]
[null,"NO",false,false,false,false,false,false,false,false,false,false]
[null,"C. Educational benefits do not require Complementary Inputs (NA)",false,false,false,false,false,false,false,false,false,false]
[null,"NO",false,false,false,false,false,false,false,false,false,false]
[null,"NA",true,true,true,true,true,true,true,true,true,true]
[3.2,"Number of educational institutions within 0.25 miles of the site?                                                                                              ",2,0,null,null,null,null,null,null,null,null,{"$f":"AVERAGE(Edu_3_2_1_Site1, Edu_3_2_1_Site2, Edu_3_2_1_Site3, Edu_3_2_1_Site4, Edu_3_2_1_Site5, Edu_3_2_1_Site6, Edu_3_2_1_Site7, Edu_3_2_1_Site8, Edu_3_2_1_Site9, Edu_3_2_1_Site10)","v":{"$error":"#DIV/0!"}}]
[3.3,"A.1 Does the site have features/habitat/wildlife of educational interest?",false,false,false,false,false,false,false,false,false,false]
[null,"NO",false,false,false,false,false,false,false,false,false,false]
[null,"      Note the features, habitat or wildlife","\"Wildlife Habitat\" probability of 0.43, and 0.53 OES for a score of 0","\"Wildlife Habitat\" probability of 0.71, and 0.81 OES for a score of 1.62"]
[null,"B. How many other wetlands suitable for educational use are within 1/2 mile of the site?",4.9000000000000004,12.4,null,null,null,null,null,null,null,null,{"$f":"AVERAGE(Edu_3_3_B1_Site1, Edu_3_3_B1_Site2, Edu_3_3_B1_Site3, Edu_3_3_B1_Site4, Edu_3_3_B1_Site5, Edu_3_3_B1_Site6, Edu_3_3_B1_Site7, Edu_3_3_B1_Site8, Edu_3_3_B1_Site9, Edu_3_3_B1_Site10)","v":{"$error":"#DIV/0!"}},"UNITS?"]
[null,"C.1 Will the site have complementary infrastructure?",false,false,false,false,false,false,false,false,false,false]
[null,"NO",false,false,false,false,false,false,false,false,false,false]
[null,"Note what these infrastructure are and their number or density","Asumed to receive signage after restoration","Asumed to receive signage after restoration"]
[null,"D. Does the site have characteristics that make it prefferable?",false,false,false,false,false,false,false,false,false,false]
[null,"NO",false,false,false,false,false,false,false,false,false,false]
[]
[]
[null,"Rec"]
[]
[3,"Compile Benefit Indicators",null,null,"Compile Benefit Indicators for Woonasquatucket Example",null,null,null,"Compile Benefit Indicators for Woonasquatucket Example"]
["Site name or identifier",null,1,2,3,4,5,6,7,8,9,10]
[3.1,"A. Do people want to do recreational activities that require wetlands?",false,false,false,false,false,false,false,false,false,false]
[null,"NO",false,false,false,false,false,false,false,false,false,false]
[null,"B. Will the site support recreational activities?",false,false,false,false,false,false,false,false,false,false]
[null,"NO",false,false,false,false,false,false,false,false,false,false]
[null,"C. Will required Complementary Inputs be available at the site?",false,false,false,false,false,false,false,false,false,false]
[null,"(NA)",false,false,false,false,false,false,false,false,false,false]
[null,null,false,false,false,false,false,false,false,false,false,false]
[3.2,"1. How many people or homes within 1/3 mile of the site?                                                                                                 ",766,34,null,null,null,null,null,null,null,null,{"$f":"AVERAGE(Rec_3_2_1_Site1, Rec_3_2_1_Site2, Rec_3_2_1_Site3, Rec_3_2_1_Site4, Rec_3_2_1_Site5, Rec_3_2_1_Site6, Rec_3_2_1_Site7, Rec_3_2_1_Site8, Rec_3_2_1_Site9, Rec_3_2_1_Site10)","v":{"$error":"#DIV/0!"}},"UNITS?"]
[null,"2. Are there bike trails within 1/3 mile of the site?",false,false,false,false,false,false,false,false,false,false]
[null,"NO",false,false,false,false,false,false,false,false,false,false]
[null,"3. Are there bus stops within 1/3 mile of the site?",false,false,false,false,false,false,false,false,false,false]
[null,"NO",false,false,false,false,false,false,false,false,false,false]
[null,"4. How many people/homes within 1/3 to 1/2 mile of the site?",786,90,null,null,null,null,null,null,null,null,{"$f":"AVERAGE(Rec_3_2_4_Site1, Rec_3_2_4_Site2, Rec_3_2_4_Site3, Rec_3_2_4_Site4, Rec_3_2_4_Site5, Rec_3_2_4_Site6, Rec_3_2_4_Site7, Rec_3_2_4_Site8, Rec_3_2_4_Site9, Rec_3_2_4_Site10)","v":{"$error":"#DIV/0!"}},"UNITS?"]
[null,"5. How many people/homes within 1/2 to 6 miles of the site?",102481,35734,null,null,null,null,null,null,null,null,{"$f":"AVERAGE(Rec_3_2_5_Site1, Rec_3_2_5_Site2, Rec_3_2_5_Site3, Rec_3_2_5_Site4, Rec_3_2_5_Site5, Rec_3_2_5_Site6, Rec_3_2_5_Site7, Rec_3_2_5_Site8, Rec_3_2_5_Site9, Rec_3_2_5_Site10)","v":{"$error":"#DIV/0!"}},"UNITS?"]
[3.3,"A.1 What is the total area of green space around the restoration site?",45.1,48432.9,null,null,null,null,null,null,null,null,{"$f":"AVERAGE(Rec_3_3_A1_Site1, Rec_3_3_A1_Site2, Rec_3_3_A1_Site3, Rec_3_3_A1_Site4, Rec_3_3_A1_Site5, Rec_3_3_A1_Site6, Rec_3_3_A1_Site7, Rec_3_3_A1_Site8, Rec_3_3_A1_Site9, Rec_3_3_A1_Site10)","v":{"$error":"#DIV/0!"}},"UNITS?"]
[null,"B.1 Substitute greenspace within 2/3 mile of the site? (number/area)",27.2,62.2,null,null,null,null,null,null,null,null,{"$f":"AVERAGE(Rec_3_3_B1_Site1, Rec_3_3_B1_Site2, Rec_3_3_B1_Site3, Rec_3_3_B1_Site4, Rec_3_3_B1_Site5, Rec_3_3_B1_Site6, Rec_3_3_B1_Site7, Rec_3_3_B1_Site8, Rec_3_3_B1_Site9, Rec_3_3_B1_Site10)","v":{"$error":"#DIV/0!"}},"UNITS?"]
[null,"B.2 Substitute greenspace within 1 mile of the site? (number/area)",38,68.900000000000006,null,null,null,null,null,null,null,null,{"$f":"AVERAGE(Rec_3_3_B2_Site1, Rec_3_3_B2_Site2, Rec_3_3_B2_Site3, Rec_3_3_B2_Site4, Rec_3_3_B2_Site5, Rec_3_3_B2_Site6, Rec_3_3_B2_Site7, Rec_3_3_B2_Site8, Rec_3_3_B2_Site9, Rec_3_3_B2_Site10)","v":{"$error":"#DIV/0!"}},"UNITS?"]
[null,"B.3 Substitute of greenspace within 12 miles of the site? (number/area)",39.5,38.799999999999997,null,null,null,null,null,null,null,null,{"$f":"AVERAGE(Rec_3_3_B3_Site1, Rec_3_3_B3_Site2, Rec_3_3_B3_Site3, Rec_3_3_B3_Site4, Rec_3_3_B3_Site5, Rec_3_3_B3_Site6, Rec_3_3_B3_Site7, Rec_3_3_B3_Site8, Rec_3_3_B3_Site9, Rec_3_3_B3_Site10)","v":{"$error":"#DIV/0!"}},"UNITS?"]
[null,"C.1 Does the site have infrastructure that supports more activities?",false,false,false,false,false,false,false,false,false,false]
[null,null,false,false,false,false,false,false,false,false,false,false]
[null,"      Note what these infrastructure are and list the additional recreational activities supported","Outdoor Facilities -Yes (Cricket); Fishing /Boating Access-No; Bike paths-Yes (Biking); Trails-No "]
[null,"D. Does the site have additional features that people prefer?",false,false,false,false,false,false,false,false,false,false]
[null,null,false,false,false,false,false,false,false,false,false,false]
[null,"      Note what these features are","No adjacent historic sites or scenic areas","No adjacent historic sites or scenic areas"]
[]
[]
[null,"Bird"]
[]
[3,"Compile Benefit Indicators",null,null,"Compile Benefit Indicators for Woonasquatucket Example",null,null,null,"Compile Benefit Indicators for Woonasquatucket Example"]
["Site name or identifier",null,1,2,3,4,5,6,7,8,9,10]
[3.1,"A. Do people nearby want to see or hear birds?",false,false,false,false,false,false,false,false,false,false]
[null,"NO",false,false,false,false,false,false,false,false,false,false]
[null,"B. Will the site support bird species of interest?",false,false,false,false,false,false,false,false,false,false]
[null,"NO",false,false,false,false,false,false,false,false,false,false]
[null,"C. Bird watching benefits do not require Complementary Inputs (NA)",false,false,false,false,false,false,false,false,false,false]
[null,"NO",false,false,false,false,false,false,false,false,false,false]
[null,"NA",true,true,true,true,true,true,true,true,true,true]
[3.2,"1. How many people or homes within 1/5 mile of the site?                                                                                                 ",null,null,null,null,null,null,null,null,null,null,{"$f":"AVERAGE(Bird_3_2_1_Site1, Bird_3_2_1_Site2, Bird_3_2_1_Site3, Bird_3_2_1_Site4, Bird_3_2_1_Site5, Bird_3_2_1_Site6, Bird_3_2_1_Site7, Bird_3_2_1_Site8, Bird_3_2_1_Site9, Bird_3_2_1_Site10)","v":{"$error":"#DIV/0!"}},"UNITS?"]
[null,"2. Do trails or roads pass within 1/5 mile of the site? ",false,false,false,false,false,false,false,false,false,false]
[null,"NO",false,false,false,false,false,false,false,false,false,false]
[3.3,"A.1 Will the site support rare or unique species?",false,false,false,false,false,false,false,false,false,false]
[null,"NO",false,false,false,false,false,false,false,false,false,false]
[null,"      Note why, or the results of bird habitat/functional assessments"]
[null,"B. Bird watching benefits do not have substitutes and measuring scarcity is beyond the scope of a rapid assessment (NA)"]
[null,"C.1 Will the site have complementary infrastructure or habitat?",false,false,false,false,false,false,false,false,false,false]
[null,"NO",false,false,false,false,false,false,false,false,false,false]
[null,"      Note what this infrastructure is and its density"]
[null,"D. Are people who may benefit expected to have above average interest in bird watching?",false,false,false,false,false,false,false,false,false,false]
[null,"NO",false,false,false,false,false,false,false,false,false,false]
[]
[]
["Site name or identifier",null,1,2,3,4,5,6,7,8,9,10]
[3.4,"Social Equity (score)",null,null,null,null,null,null,null,null,null,null,{"$f":"AVERAGE(Eq_Site1, Eq_Site2, Eq_Site3,Eq_Site4, Eq_Site5, Eq_Site6, Eq_Site7, Eq_Site8, Eq_Site9, Eq_Site10)","v":{"$error":"#DIV/0!"}}]
[null,"notes"]
[3.5,"Reliability (score)",null,null,null,null,null,null,null,null,null,null,{"$f":"AVERAGE(Rel_Site1, Rel_Site2, Rel_Site3, Rel_Site4, Rel_Site5,Rel_Site6, Rel_Site7, Rel_Site8, Rel_Site9, Rel_Site10)","v":{"$error":"#DIV/0!"}}]
[null,"notes"]
[]
[]
["Step 4","Summarize the Indicators"]
["Benefit","Indicators"]
["Flood Risk","3.2 How Many Benefit?","2.5 mi downstream of site and in flood zone"]
[null,"3.3.A Service Quality","Area of restoration site (acres)"]
[null,null,"Features that increase retention volume?"]
[null,"3.3.B Scarcity","Dams and levees 2.5 mi downstream?"]
[null,null,"Wetlands within 5 mi (number or % area)"]
[null,"3.3.C Complements","NA"]
[null,"3.3.D Preferences","Are people worried about flood risk?"]
["Scenic Views","3.2 How Many Benefit?","Number within 160 ft of site"]
[null,null,"Number within 325 ft of site"]
[null,null,"Weighted number who benefit"]
[null,null,"Are there roads or trails within 325 ft of site?"]
[null,"3.3.A Service Quality","Aesthetic features or characteristics?"]
[null,"3.3.B Scarcity","Wetlands or water within 650 ft (number or %)"]
[null,"3.3.C Complements","Natural land use types within 650 ft (types)"]
[null,"3.3.D Preferences","Will people find it aesthetically pleasing?"]
["Environmental Education","3.2 How Many Benefit?","Education institutions within 0.25 mi of site"]
[null,"3.3.A Service Quality","Features/habitat/wildlife of education interest?"]
[null,"3.3.B Scarcity","Wetlands within 0.5 mi of the site"]
[null,"3.3.C Complements","Educational facilities or infrastructure on site?"]
[null,"3.3.D Preferences","Will people prefer charcteristics of the site?"]
["Recreation","3.2 How Many Benefit?","Number within 1/3 mi of the site"]
[null,null,"Are there bike paths within 1/3 mi of site?"]
[null,null,"Are there bus stops within 1/3 mi of site?"]
[null,null,"Number within 0 to 0.5 mi of site"]
[null,null,"Number within 0.5 to 6 mi of site"]
[null,"3.3.A Service Quality","Total area of green space around site"]
[null,"3.3.B Scarcity","green space within 2/3 mi of site"]
[null,null,"green space within 1 mi of site"]
[null,null,"green space within 12 mi of site"]
[null,"3.3.C Complements","Infrastructure supporting recreational activities?"]
[null,"3.3.D Preferences","Are there additional features on the site?"]
["Bird Watching","3.2 How Many Benefit?","Number within 0.2 mi of site"]
[null,null,"Are there roads or trails within 0.2 mi of site?"]
[null,"3.3.A Service Quality","Will the site support rare or unique species?"]
[null,"3.3.B Scarcity","NA"]
[null,"3.3.C Complements","Supporting infrastructure or habitat on site?"]
[null,"3.3.D Preferences","Will people be interested in birds at the site?"]
[null,"3.2 How Many Benefit?"]
[null,"3.3.A Service Quality"]
[null,"3.3.B Scarcity"]
[null,"3.3.C Complements"]
[null,"3.3.D Preferences"]
[null,"3.4 Social Equity","Score"]
[null,"3.5 Reliability","Score"]
["BLACK = No entry; GRAY = NA; BLUE = Above Average/YES*; RED = Below Average/No* (*reverse for scarcity)"]